fUSD/lending_fUSD_20260129
["ID","MTS","AMOUNT","RATE_DAILY","PERIOD"]
[403991011,1769703262588,-500.0,0.00043835,120]
[403991012,1769703262662,-500.0,0.00043835,120]
[403991013,1769703262733,-500.0,0.00043835,120]
[403991014,1769703262803,-402.4362303,0.00043835,120]
[403991016,1769703262876,-500.0,0.00043945,120]
[403991017,1769703262948,-1105.44172107,0.00043987,120]
[403991018,1769703263017,-385.64734924,0.00044,120]
[403991019,1769703263089,-691.36953709,0.00044,120]
[403991020,1769703263166,-200.0,0.00044,120]
[403991021,1769703263241,-500.0,0.00044,120]
[403991022,1769703263319,-440.38199614,0.00044,120]
[403991023,1769703263392,-3839.0,0.00044,30]
[403991024,1769703263467,-253.0,0.00044,45]
[403991025,1769703263544,-557.821199,0.00044,57]
[403991026,1769703263621,-500.0,0.00044082,120]
[403991027,1769703263699,-200.6,0.000441,120]
[403991028,1769703263777,-200.6,0.000441,120]
[403991029,1769703263853,-9212.77,0.00044109,120]
[403991030,1769703263928,-150.0,0.00044124,120]
[403991031,1769703264001,-150.0,0.00044139,30]
[403991032,1769703264078,-150.0,0.00044139,30]
[403991033,1769703264150,-150.0,0.00044139,30]
[403991034,1769703264221,-150.0,0.00044139,30]
[403991035,1769703264297,-150.0,0.00044139,30]
[403991036,1769703264369,-150.79,0.00044139,30]
[403991037,1769703264441,-531.36300443,0.00044219,120]
[403991038,1769703264514,-150.0,0.00044224,30]
[403991039,1769703264585,-300.0,0.00044224,30]
[403991040,1769703264658,-150.0,0.00044224,30]
[403991041,1769703264727,-150.0,0.00044224,30]
[403991042,1769703264802,-307.78,0.00044224,30]
[403991043,1769703264876,-150.0,0.00044229,120]
[403991044,1769703264948,-159.05321778,0.0004425,120]
[403991045,1769703265023,-150.0,0.00044261,120]
[403991046,1769703265094,-150.0,0.00044296,120]
[403991047,1769703265510,-151.0,0.000443,120]
[403991048,1769703265608,-303.36870292,0.00044326,120]
[403991049,1769703265680,-151.0,0.000444,120]
[403991050,1769703265756,-2046.12492732,0.000444,120]
[403991051,1769703265835,-629.56902873,0.000445,120]
[403991052,1769703265911,-200.6,0.000445,90]
[403991053,1769703265988,-186.92451144,0.000447,120]
[403991054,1769703266075,-548.1175304,0.000447,120]
[403991055,1769703266153,-919.90685945,0.000447,120]
[403991056,1769703266228,-226.97753095,0.000447,120]
[403991057,1769703266302,-196.5909683,0.000447,120]
[403991058,1769703266377,-185.16086656,0.000447,120]
[403991059,1769703266454,-221.68905235,0.000447,120]
[403991060,1769703266529,-220.68680934,0.000447,120]
[403991063,1769703266607,-200.0,0.00044824,120]
[403991064,1769703266684,-297.57384153,0.0004489,120]
[403991065,1769703266763,-6848.47122286,0.000449,30]
[403991066,1769703266841,-404.2829,0.000449,120]
[403991067,1769703266920,-151.0,0.000449,120]
[403991068,1769703266995,-9212.77,0.00044931,120]
[403991069,1769703267079,-211.0,0.0004496,30]
[403991070,1769703267159,-211.0,0.0004496,30]
[403991071,1769703267240,-150.0,0.00044981,120]
[403991072,1769703267315,-519.7429111,0.00045,120]
[403991073,1769703267392,-550.55987211,0.00045,120]
[403991074,1769703267468,-165.63265574,0.00045,120]
[403991075,1769703267545,-250.0,0.00045,120]
[403991076,1769703267622,-200.0,0.00045,120]
[403991077,1769703267698,-1594.63922745,0.00045,120]
[403991078,1769703267774,-605.43336775,0.00045,30]
[403991079,1769703267848,-150.0,0.00045,120]
[403991080,1769703267926,-200.02052837,0.00045,120]
[403991081,1769703268005,-159.9,0.00045,85]
[403991082,1769703268085,-222.38971283,0.00045,30]
[403991083,1769703268163,-20000.0,0.00045,30]
[403991084,1769703268246,-1000.0,0.00045,120]
[403991085,1769703268324,-71242.51609333,0.00045,120]
[403991086,1769703268409,-167.98,0.00045,120]
[403991087,1769703268491,-2212.02,0.00045,120]
[403991088,1769703268571,-208.64217617,0.00045,120]
[403991089,1769703268654,-150.0,0.00045,120]
[403991090,1769703268731,-221.81,0.00045,120]
[403991091,1769703268808,-259.426844,0.00045,48]
[403991092,1769703268883,-296.72764073,0.000451,120]
[403991093,1769703268957,-151.0,0.000452,120]
[403991094,1769703269033,-150.0,0.0004525,120]
[403991095,1769703269110,-150.0,0.00045304,120]
[403991096,1769703269184,-153.0,0.0004538,120]
[403991097,1769703269259,-150.0,0.00045509,120]
[403991098,1769703269336,-151.0,0.000456,120]
[403991099,1769703269412,-169.88356068,0.000457,120]
[403991101,1769703269488,-267.24367786,0.00045743,45]
[403991102,1769703269566,-9212.77,0.00045753,120]
[403991103,1769703269642,-200.0,0.00045824,120]
[403991104,1769703269718,-151.0,0.000459,120]
[403991105,1769703269794,-209.06441236,0.00046,120]
[403991106,1769703269869,-205.07327444,0.00046,30]
[403991107,1769703269942,-200.0,0.00046,120]
[403991108,1769703270015,-500.0,0.00046,120]
[403991109,1769703270086,-50241.1733591,0.00046,90]
[403991110,1769703270157,-15000.0,0.00046,30]
[403991111,1769703270227,-1000.0,0.00046,120]
[403991112,1769703270296,-345.7721551,0.00046,120]
[403991113,1769703270366,-221.65103848,0.00046,30]
[403991114,1769703270438,-1289.47616452,0.00046,120]
[403991115,1769703270508,-548.1175304,0.00046,120]
[403991116,1769703270578,-919.90685945,0.00046,120]
[403991117,1769703270652,-226.97753095,0.00046,120]
[403991118,1769703270725,-196.5909683,0.00046,120]
[403991119,1769703270795,-185.16086656,0.00046,120]
[403991120,1769703270865,-221.68905235,0.00046,120]
[403991121,1769703270936,-220.68680934,0.00046,120]
[403991122,1769703271009,-844.0,0.00046,120]
[403991123,1769703271086,-1102.0,0.00046016,30]
[403991124,1769703271154,-4342.65,0.00046173,120]
[403991125,1769703271224,-151.0,0.000462,120]
[403991126,1769703271295,-9212.77,0.00046575,120]
[403991127,1769703271364,-151.0,0.000467,120]
[403991128,1769703271434,-380.51,0.00046737,120]
[403991129,1769703271506,-456.8239511,0.000468,120]
[403991130,1769703271577,-151.0,0.000468,120]
[403991131,1769703271941,-1463.11,0.000468,120]
[403991132,1769703272012,-200.0,0.00046824,120]
[403991133,1769703272082,-698.15732878,0.000469,120]
[403991134,1769703272152,-211.0,0.0004698,30]
[403991135,1769703272227,-211.0,0.0004698,30]
[403991136,1769703272294,-200.0,0.00047,120]
[403991137,1769703272367,-428.2091,0.000472,120]
[403991138,1769703272439,-9212.77,0.00047397,120]
[403991140,1769703272507,-548.1175304,0.000474,120]
[403991141,1769703272578,-919.90685945,0.000474,120]
[403991142,1769703272651,-226.97753095,0.000474,120]
[403991143,1769703272720,-196.5909683,0.000474,120]
[403991144,1769703272790,-185.16086656,0.000474,120]
[403991145,1769703272862,-221.68905235,0.000474,120]
[403991146,1769703272936,-220.68680934,0.000474,120]
[403991147,1769703273010,-151.0,0.000474,120]
[403991148,1769703273083,-151.0,0.000474,120]
[403991149,1769703273154,-538.69818688,0.000475,120]
[403991150,1769703273224,-250.0,0.000475,120]
[403991151,1769703273296,-200.0,0.00047824,120]
[403991152,1769703273367,-176.25579909,0.00048,120]
[403991153,1769703273439,-200.0,0.00048,120]
[403991154,1769703273510,-500.0,0.00048,120]
[403991155,1769703273584,-1889.06395054,0.00048,120]
[403991156,1769703273658,-326.71231475,0.00048,120]
[403991157,1769703273731,-331.67924593,0.00048,120]
[403991158,1769703273805,-1289.47616452,0.00048,120]
[403991160,1769703273881,-151.0,0.00048,120]
[403991161,1769703273958,-520.93,0.00048,120]
[403991162,1769703274036,-8440.6,0.00048,30]
[403991163,1769703274111,-151.0,0.000481,120]
[403991164,1769703274184,-220.0,0.0004818,30]
[403991165,1769703274258,-9212.77,0.00048219,120]
[403991166,1769703274330,-150.85824106,0.00048316,30]
[403991167,1769703274404,-202.63663338,0.000485,120]
[403991168,1769703274477,-151.0,0.000486,120]
[403991169,1769703274548,-209.74644207,0.00048778,120]
[403991170,1769703274620,-207.36177663,0.00048778,120]
[403991171,1769703274688,-208.55410935,0.00048778,120]
[403991172,1769703274761,-548.1175304,0.000488,120]
[403991173,1769703274841,-919.90685945,0.000488,120]
[403991174,1769703274912,-226.97753095,0.000488,120]
[403991175,1769703274984,-221.68905235,0.000488,120]
[403991176,1769703275058,-220.68680934,0.000488,120]
[403991177,1769703275128,-1404.20260287,0.000488,120]
[403991178,1769703275198,-200.0,0.00048824,120]
[403991179,1769703275268,-1463.11,0.0004884,120]
[403991180,1769703275338,-5080.85811095,0.00048875,60]
[403991181,1769703275411,-4438.22703987,0.00048875,60]
[403991182,1769703275482,-380.06610804,0.0004888,120]
[403991183,1769703275553,-3245.47240325,0.00048888,120]
[403991184,1769703275636,-4049.75197302,0.00048889,120]
[403991185,1769703275709,-214.433408,0.000489,120]
[403991186,1769703275782,-1235.06801427,0.000489,120]
[403991187,1769703275853,-970.91,0.000489,120]
[403991188,1769703275924,-151.0,0.000489,120]
[403991189,1769703275996,-22000.0,0.0004899,30]
[403991190,1769703276072,-211.0,0.0004899,30]
[403991191,1769703276147,-211.0,0.0004899,30]
[403991192,1769703276218,-189.01753508,0.00049,120]
[403991193,1769703276290,-178.41940292,0.00049,120]
[403991194,1769703276362,-177.98454481,0.00049,120]
[403991195,1769703276434,-200.0,0.00049,120]
[403991196,1769703276506,-164.22225723,0.00049,120]
[403991197,1769703276576,-2269.72108868,0.00049,120]
[403991198,1769703276651,-152.40776758,0.00049,90]
[403991199,1769703276728,-241.44446135,0.00049,120]
[403991200,1769703276799,-6000.0,0.00049,30]
[403991201,1769703276885,-102410.8347291,0.00049,30]
[403991204,1769703276954,-488.58688,0.00049,120]
[403991205,1769703277031,-9212.77,0.00049041,120]
[403991206,1769703277106,-151.0,0.000492,120]
[403991207,1769703277178,-1386.96472521,0.000493,120]
[403991208,1769703277252,-500.0,0.00049315,120]
[403991209,1769703277323,-500.0,0.00049315,120]
[403991210,1769703277394,-500.0,0.00049315,120]
[403991211,1769703277466,-193.87656231,0.00049315,120]
[403991212,1769703277541,-500.0,0.00049315,120]
[403991213,1769703277616,-500.0,0.00049315,120]
[403991214,1769703277692,-186.35204839,0.00049315,120]
[403991215,1769703278002,-1000.0,0.00049348,60]
[403991216,1769703278079,-7848.94895005,0.000495,120]
[403991217,1769703278162,-454.60680316,0.000495,30]
[403991218,1769703278239,-258.99631015,0.000495,120]
[403991219,1769703278320,-500.0,0.00049589,120]
[403991221,1769703278400,-500.0,0.00049589,120]
[403991222,1769703278479,-500.0,0.00049589,120]
[403991223,1769703278560,-500.0,0.00049589,120]
[403991224,1769703278640,-639.16416134,0.00049589,120]
[403991225,1769703278721,-151.0,0.000496,120]
[403991226,1769703278801,-710.85650292,0.00049799,120]
[403991227,1769703278881,-535.64540657,0.000498,30]
[403991228,1769703278963,-527.1564704,0.000498,120]
[403991229,1769703279043,-1341.67375063,0.000498,120]
[403991230,1769703279125,-2546.93879774,0.000498,120]
[403991231,1769703279206,-200000.0,0.000498,45]
[403991232,1769703279288,-200000.0,0.000498,50]
[403991233,1769703279370,-200.0,0.00049824,120]
[403991234,1769703279451,-173.94563619,0.00049863,120]
[403991235,1769703279536,-500.0,0.00049863,120]
[403991236,1769703279619,-500.0,0.00049863,120]
[403991237,1769703279702,-176.14542636,0.00049863,120]
[403991238,1769703279785,-9212.77,0.00049863,120]
[403991239,1769703279865,-178.21871909,0.000499,30]
[403991240,1769703279944,-701.18045698,0.000499,30]
[403991241,1769703280023,-151.0,0.000499,120]
[403991242,1769703280100,-939.98951737,0.00049949,120]
[403991243,1769703280177,-4444.46907005,0.00049949,120]
[403991244,1769703280252,-1035.0302,0.0004999,120]
[403991245,1769703280333,-1066.5374,0.0004999,120]
[403991246,1769703280410,-676.36693828,0.0004999,120]
[403991247,1769703280485,-790.86076458,0.0004999,120]
[403991248,1769703280561,-262.58831065,0.0005,120]
[403991249,1769703280641,-172.98175327,0.0005,120]
[403991250,1769703280720,-749.53039393,0.0005,120]
[403991252,1769703280800,-695.18967536,0.0005,30]
[403991253,1769703280875,-225.84563686,0.0005,120]
[403991254,1769703280950,-500.0,0.0005,30]
[403991255,1769703281022,-465.17489066,0.0005,120]
[403991256,1769703281098,-200.0,0.0005,120]
[403991257,1769703281169,-166.71543629,0.0005,120]
[403991258,1769703281240,-160.58546462,0.0005,120]
[403991259,1769703281310,-150.0,0.0005,40]
[403991260,1769703281381,-250.0,0.0005,120]
[403991261,1769703281454,-200.0,0.0005,120]
[403991262,1769703281524,-500.0,0.0005,120]
[403991263,1769703281596,-500.0,0.0005,120]
[403991264,1769703281668,-209.59797425,0.0005,120]
[403991265,1769703281740,-8727.20720284,0.0005,120]
[403991266,1769703281811,-1451.35672961,0.0005,120]
[403991267,1769703281881,-155.2218519,0.0005,120]
[403991268,1769703281950,-5019.42892986,0.0005,120]
[403991269,1769703282023,-877.46655198,0.0005,120]
[403991270,1769703282094,-165.3891382,0.0005,120]
[403991271,1769703282161,-600.0,0.0005,120]
[403991272,1769703282235,-180162.0000007,0.0005,120]
[403991273,1769703282304,-150.0,0.0005,120]
[403991274,1769703282373,-16598.4902615,0.0005,30]
[403991275,1769703282440,-3094.0,0.0005,120]
[403991276,1769703282510,-200.0,0.0005,120]
[403991277,1769703282584,-4150.0,0.0005,120]
[403991278,1769703282657,-4150.0,0.0005,120]
[403991279,1769703282727,-4150.0,0.0005,120]
[403991280,1769703282798,-4150.0,0.0005,120]
[403991281,1769703282867,-4500.0,0.0005,120]
[403991282,1769703282937,-4500.0,0.0005,120]
[403991283,1769703283007,-284.81064155,0.0005,120]
[403991284,1769703283080,-1000.0,0.0005,120]
[403991285,1769703283162,-211.14293399,0.0005,30]
[403991286,1769703283233,-160.51508029,0.0005,120]
[403991288,1769703283304,-152.47840301,0.0005,30]
[403991289,1769703283375,-1000.0,0.0005,120]
[403991290,1769703283446,-477.12223241,0.0005,120]
[403991291,1769703283518,-6510.36480748,0.0005,120]
[403991292,1769703283590,-167.98,0.0005,120]
[403991293,1769703283662,-2212.02,0.0005,120]
[403991294,1769703283732,-1245.15,0.0005,30]
[403991295,1769703283805,-37400.0,0.0005,90]
[403991296,1769703283880,-2410.66745672,0.0005,120]
[403991297,1769703283951,-500.0,0.00050136,120]
[403991298,1769703284327,-240.94947318,0.00050136,120]
[403991299,1769703284398,-10000.0,0.000502,120]
[403991300,1769703284468,-10000.0,0.000502,120]
[403991301,1769703284541,-20000.0,0.000502,120]
[403991302,1769703284615,-151.0,0.000504,120]
[403991303,1769703284688,-500.0,0.0005041,120]
[403991305,1769703284762,-10000.0,0.000505,120]
[403991306,1769703284836,-10000.0,0.000505,120]
[403991307,1769703284910,-151.0,0.000505,120]
[403991308,1769703284981,-20000.0,0.000505,120]
[403991309,1769703285055,-2377.0,0.00050528,120]
[403991310,1769703285132,-586.50677966,0.000506,120]
[403991311,1769703285203,-475.20941303,0.00050684,120]
[403991312,1769703285274,-9212.77,0.00050684,120]
[403991313,1769703285345,-495.38,0.000507,120]
[403991314,1769703285415,-9302.63,0.000508,120]
[403991315,1769703285486,-1040.46,0.000508,120]
[403991316,1769703285555,-570.63056547,0.000508,120]
[403991317,1769703285625,-50000.0,0.000508,120]
[403991318,1769703285698,-37957.45,0.000508,120]
[403991319,1769703285771,-206.191148,0.00050824,120]
[403991320,1769703285844,-1463.11,0.0005088,120]
[403991321,1769703285916,-20402.36585948,0.000509,120]
[403991322,1769703285990,-5285.0,0.00051,120]
[403991323,1769703286064,-150.0,0.00051,40]
[403991325,1769703286132,-598.84683901,0.00051,120]
[403991327,1769703286200,-3809.38523637,0.00051,120]
[403991333,1769703289777,262.0,0.00013615,2]
[403991334,1769703301811,-923132.13448734,0.00043764,30]
[403991335,1769703301890,-533.49337691,0.00043764,30]
[403991336,1769703301968,-250.7284451,0.00043764,120]
[403991337,1769703302048,-6509.66666514,0.00043764,30]
[403991338,1769703302130,-13399.80094561,0.00043764,30]
[403991339,1769703302210,-43123.19864869,0.00043764,30]
[403991340,1769703302291,-178.72268119,0.00043764,30]
[403991341,1769703302369,-15383.35650114,0.00043764,30]
[403991342,1769703302448,-409.2463056,0.00043764,120]
[403991343,1769703302526,-432.92670967,0.00043764,120]
[403991344,1769703302604,-305.40891974,0.00043764,30]
[403991345,1769703302684,-439.18030343,0.00043764,90]
[403991346,1769703302764,-287.57766091,0.00043764,120]
[403991347,1769703302847,-586.47050468,0.00043764,120]
[403991348,1769703302928,-207.78760621,0.00043764,30]
[403991349,1769703303007,-221.43784818,0.00043764,30]
[403991350,1769703303093,-192.98490515,0.00043764,120]
[403991351,1769703303185,-15109.21232277,0.00043764,30]
[403991352,1769703303273,-345567.57694882,0.00043764,30]
[403991353,1769703303361,-374.68779479,0.00043764,30]
[403991354,1769703303445,-501.51800829,0.00043764,120]
[403991355,1769703303536,-289.9325067,0.00043764,30]
[403991356,1769703303624,-441.79669172,0.00043764,120]
[403991357,1769703303715,-5083.26950648,0.00043764,30]
[403991358,1769703303806,-422.13944937,0.00043764,120]
[403991359,1769703303893,-291.22914706,0.00043764,30]
[403991360,1769703303981,-328.69217028,0.00043764,120]
[403991361,1769703304072,-406.99460399,0.00043764,120]
[403991362,1769703304158,-156.65232892,0.00043764,120]
[403991363,1769703304247,-413.79022613,0.00043764,120]
[403991364,1769703304331,-4872.48404217,0.00043764,30]
[403991365,1769703304419,-5451.03915377,0.00043764,30]
[403991366,1769703304508,-175.46109094,0.00043764,120]
[403991367,1769703304598,-389.31478055,0.00043764,120]
[403991368,1769703304685,-218.03011477,0.00043764,120]
[403991369,1769703304770,-151.11985493,0.00043764,30]
[403991370,1769703304858,-270.73965583,0.00043764,120]
[403991371,1769703304950,-281.76366603,0.00043764,30]
[403991372,1769703305040,-633.33116507,0.00043764,120]
[403991373,1769703305127,-265.17232751,0.00043764,120]
[403991374,1769703305213,-299.43063292,0.00043764,120]
[403991375,1769703305299,-307.76724211,0.00043764,30]
[403991376,1769703305397,-414.85407252,0.00043764,120]
[403991377,1769703305498,-400.84821946,0.00043764,30]
[403991378,1769703305584,-10902.48470369,0.00043764,30]
[403991379,1769703305666,-423.86585047,0.00043764,30]
[403991380,1769703305747,-244.53625961,0.00043764,120]
[403991381,1769703305834,-267.85714261,0.00043764,120]
[403991382,1769703305918,-436.89334673,0.00043764,120]
[403991383,1769703306004,-328.67735445,0.00043764,120]
[403991384,1769703306398,-7495.55293518,0.00043764,30]
[403991385,1769703306475,-336.78194124,0.00043764,120]
[403991386,1769703306554,-367.37478445,0.00043764,120]
[403991387,1769703306632,-375.87402872,0.00043764,30]
[403991388,1769703306712,-156.97721332,0.00043764,30]
[403991389,1769703306792,-284.17934705,0.00043764,30]
[403991390,1769703306871,-207.37926216,0.00043764,30]
[403991391,1769703306951,-236.38297854,0.00043764,30]
[403991392,1769703307033,-337.21328451,0.00043764,120]
[403991393,1769703307117,-166.66124308,0.00043764,120]
[403991394,1769703307197,-21232.84208521,0.00043764,30]
[403991395,1769703307276,-328.80868724,0.00043764,30]
[403991396,1769703307352,-412.73141605,0.00043764,30]
[403991397,1769703307430,-186.4600753,0.00043764,120]
[403991398,1769703307507,-357.69816436,0.00043764,120]
[403991399,1769703307585,-468.80931233,0.00043764,120]
[403991400,1769703307666,-518.42161767,0.00043764,120]
[403991401,1769703307744,-181.00584172,0.00043764,120]
[403991402,1769703307825,-553.30252764,0.00043764,120]
[403991403,1769703307903,-549.50399418,0.00043764,120]
[403991404,1769703307981,-347.47468602,0.00043764,120]
[403991405,1769703308062,-6528.50756662,0.00043764,30]
[403991406,1769703308140,-322.71466418,0.00043764,120]
[403991407,1769703308222,-570310.24681229,0.00043764,30]
[403991408,1769703308306,-153.86525764,0.00043764,120]
[403991409,1769703308390,-197.17900704,0.00043764,120]
[403991410,1769703308479,-17623.79505415,0.00043764,30]
[403991411,1769703308566,-171.55165871,0.00043764,120]
[403991412,1769703308650,-136276.12572154,0.00043764,30]
[403991413,1769703308733,-275.10770464,0.00043764,120]
[403991414,1769703308815,-483.03354857,0.00043764,60]
[403991415,1769703308895,-268.47690596,0.00043764,120]
[403991416,1769703308975,-409.98984581,0.00043764,30]
[403991417,1769703309056,-478.92159399,0.00043764,120]
[403991418,1769703309138,-509.10519774,0.00043764,90]
[403991419,1769703309217,-585.0246158,0.00043764,120]
[403991420,1769703309293,-495.10507923,0.00043764,30]
[403991421,1769703309371,-212.01122669,0.00043764,30]
[403991422,1769703309448,-500.0,0.00043764,120]
[403991423,1769703309524,-182.0154717,0.00043764,120]
[403991424,1769703309603,-291.776031,0.00043764,120]
[403991425,1769703309681,-6196.29361461,0.00043764,30]
[403991427,1769703309759,-492.01178249,0.00043764,55]
[403991428,1769703309834,-68820.98923972,0.00043764,30]
[403991429,1769703309911,-294.99423629,0.00043764,120]
[403991430,1769703309989,-5454.94045707,0.00043764,30]
[403991431,1769703310066,-181.86071876,0.00043764,120]
[403991432,1769703310141,-509.99201759,0.00043764,120]
[403991433,1769703310216,-482.61292591,0.00043764,120]
[403991434,1769703310294,-3154.0,0.00043764,30]
[403991435,1769703310370,-500.0,0.00043764,120]
[403991436,1769703310446,-500.0,0.00043764,120]
[403991437,1769703310523,-500.0,0.00043764,120]
[403991438,1769703310599,-500.0,0.00043764,120]
[403991439,1769703310676,-500.0,0.00043764,120]
[403991440,1769703310750,-500.0,0.00043764,120]
[403991441,1769703310825,-500.0,0.00043764,120]
[403991442,1769703310900,-500.0,0.00043764,120]
[403991443,1769703310979,-500.0,0.00043764,120]
[403991444,1769703311056,-500.0,0.00043764,120]
[403991445,1769703311136,-500.0,0.00043764,120]
[403991446,1769703311211,-500.0,0.00043764,120]
[403991447,1769703311287,-500.0,0.00043764,120]
[403991448,1769703311360,-500.0,0.00043764,120]
[403991449,1769703311437,-500.0,0.00043764,120]
[403991450,1769703311512,-500.0,0.00043764,120]
[403991451,1769703311589,-500.0,0.00043764,120]
[403991452,1769703311663,-261.07793243,0.00043764,120]
[403991453,1769703311739,-2674.3379159,0.00043764,120]
[403991454,1769703311813,-20000.0,0.00043764,120]
[403991455,1769703311886,-4626.51220643,0.00043764,120]
[403991456,1769703311961,-10591.0,0.00043764,120]
[403991457,1769703312035,-680.15,0.00043764,120]
[403991458,1769703312110,-680.15,0.00043764,120]
[403991459,1769703312185,-680.15,0.00043764,120]
[403991460,1769703312260,-680.15,0.00043764,120]
[403991461,1769703312334,-680.15,0.00043764,120]
[403991462,1769703312408,-680.15,0.00043764,120]
[403991463,1769703312482,-680.15,0.00043764,120]
[403991464,1769703312556,-680.15,0.00043764,120]
[403991465,1769703312634,-680.15,0.00043764,120]
[403991466,1769703312919,-680.15,0.00043764,120]
[403991467,1769703312998,-680.15,0.00043764,120]
[403991468,1769703313074,-680.15,0.00043764,120]
[403991469,1769703313146,-680.15,0.00043764,120]
[403991470,1769703313220,-680.15,0.00043764,120]
[403991471,1769703313293,-680.15,0.00043764,120]
[403991472,1769703313367,-680.15,0.00043764,120]
[403991473,1769703313445,-680.15,0.00043764,120]
[403991474,1769703313523,-680.15,0.00043764,120]
[403991475,1769703313600,-680.15,0.00043764,120]
[403991476,1769703313676,-680.15,0.00043764,120]
[403991477,1769703313756,-680.15,0.00043764,120]
[403991478,1769703313833,-680.15,0.00043764,120]
[403991479,1769703313910,-680.15,0.00043764,120]
[403991480,1769703313989,-680.28197968,0.00043764,120]
[403991481,1769703314069,-5436.95602918,0.00043764,50]
[403991482,1769703314144,-5000.0,0.00043764,35]
[403991483,1769703314221,-500.0,0.00043764,120]
[403991484,1769703314299,-737.35895421,0.00043764,60]
[403991485,1769703314378,-562.17897847,0.00043764,30]
[403991486,1769703314456,-615.36974133,0.00043764,120]
[403991487,1769703314534,-8179.06366293,0.00043764,120]
[403991488,1769703314619,-50000.37250329,0.00043764,120]
[403991489,1769703314702,-591.39467912,0.00043764,30]
[403991490,1769703314778,-174.0,0.00043764,120]
[403991491,1769703314854,-250.0,0.00043764,120]
[403991492,1769703314930,-250.0,0.00043764,120]
[403991493,1769703315011,-500.0,0.00043764,120]
[403991494,1769703315092,-500.0,0.00043764,120]
[403991495,1769703315174,-1374.0,0.00043764,30]
[403991496,1769703315252,-258.41459892,0.00043764,60]
[403991497,1769703315330,-2407.3691277,0.00043764,120]
[403991498,1769703315408,-361.22882648,0.00043764,120]
[403991499,1769703315486,-1122.46131674,0.00043764,120]
[403991500,1769703315565,-234.0,0.00043764,120]
[403991501,1769703315641,-971.7608864,0.00043764,35]
[403991502,1769703315719,-658.04627191,0.00043764,90]
[403991503,1769703315797,-166.71526431,0.00043764,120]
[403991504,1769703315874,-482.40395098,0.00043764,120]
[403991505,1769703315950,-364.99401059,0.00043764,30]
[403991506,1769703316029,-699637.0,0.00043764,60]
[403991507,1769703316109,-2597.18051516,0.00043764,120]
[403991508,1769703316187,-965.46471635,0.00043764,120]
[403991509,1769703316263,-162.35137992,0.00043764,120]
[403991510,1769703316337,-155.99765927,0.00043764,120]
[403991511,1769703316414,-151.11351803,0.00043764,120]
[403991512,1769703316492,-1894.74076774,0.00043764,30]
[403991513,1769703316569,-158.74122701,0.00043764,120]
[403991514,1769703316649,-1469.55364134,0.00043764,120]
[403991515,1769703316733,-1649.92625621,0.00043764,120]
[403991516,1769703316817,-893.74496794,0.00043764,30]
[403991517,1769703316900,-591.56265198,0.00043764,30]
[403991518,1769703316980,-1474.6844751,0.00043764,30]
[403991519,1769703317059,-449.31881297,0.00043764,30]
[403991520,1769703317140,-689.0,0.00043764,60]
[403991521,1769703317222,-1092.6173754,0.00043764,120]
[403991522,1769703317301,-5057.54330192,0.00043764,120]
[403991523,1769703317383,-5000.0,0.00043764,120]
[403991524,1769703317462,-499974.72289189,0.00043764,30]
[403991525,1769703317541,-500.0,0.00043764,120]
[403991526,1769703317616,-12790.04,0.00043764,30]
[403991527,1769703317694,-4240.96794193,0.00043764,60]
[403991528,1769703317770,-69338.20902874,0.00043764,120]
[403991529,1769703317847,-10016.8586439,0.00043764,60]
[403991530,1769703317926,-13540.65295762,0.00043764,60]